bitfinex/quotes_BTCUSD_20251114
["timestamp","ask_amount","ask_price","bid_price","bid_amount"]
[1763080720474,2.75042727,99401.0,99400.0,1e-08]
[1763080720827,2.75242727,99401.0,99400.0,1e-08]
[1763080721017,0.52424571,99381.0,99380.0,1e-08]
[1763080721257,0.60397712,99381.0,99380.0,1e-08]
[1763080722848,0.64739586,99381.0,99380.0,1e-08]
[1763080723559,0.23627596,99371.0,99370.0,1e-08]
[1763080723689,0.23627596,99371.0,99340.0,0.0004]
[1763080723690,0.20132269,99343.0,99340.0,0.0004]
[1763080723912,0.26253674,99341.0,99340.0,0.0004]
[1763080724753,0.26267427,99341.0,99340.0,0.0004]
[1763080725187,0.20136347,99323.0,99317.0,0.20137336]
[1763080725395,0.20136495,99323.0,99301.0,0.04341874]
[1763080725553,0.0262,99322.0,99311.0,0.20138616]
[1763080725753,0.0262,99324.0,99290.0,0.0100715]
[1763080725954,0.20137807,99316.0,99300.0,0.4466859]
[1763080726158,0.0262,99324.0,99300.0,0.4466859]
[1763080726159,0.0262,99324.0,99300.0,0.01007049]
[1763080726395,0.0262,99324.0,99316.0,0.20137575]
[1763080726603,0.0262,99324.0,99300.0,0.4416859]
[1763080726802,0.0262,99324.0,99322.0,0.20136326]
[1763080726976,0.001,99323.0,99310.0,0.20138797]
[1763080727192,0.20236525,99323.0,99307.0,0.323]
[1763080727389,0.20137942,99316.0,99306.0,0.20139574]
[1763080727591,0.20138262,99314.0,99305.0,0.2013983]
[1763080727790,0.2013853,99313.0,99307.0,0.20139558]
[1763080727990,0.2013853,99313.0,99300.0,0.00507049]
[1763080727991,0.20139588,99307.0,99301.0,0.323]
[1763080728191,0.20139206,99309.0,99301.0,0.323]
[1763080728540,0.005,99316.0,99291.0,0.02804]
[1763080728741,0.005,99316.0,99298.0,0.20140986]
[1763080728979,0.2013894,99311.0,99295.0,0.323]
[1763080729183,0.2013894,99311.0,99306.0,0.20139568]
[1763080729184,0.00013745,99311.0,99306.0,0.20139568]
[1763080729389,0.00013745,99311.0,99295.0,0.323]
[1763080729598,0.00013745,99311.0,99297.0,0.21523189]
[1763080729805,0.00013745,99311.0,99310.0,0.02804]
[1763080730028,0.00013745,99311.0,99310.0,0.07145874]
[1763080730236,0.00013745,99311.0,99310.0,0.04341874]
[1763080730567,0.00013745,99311.0,99309.0,0.20139152]
[1763080730825,0.00213745,99311.0,99309.0,0.20139152]
[1763080731027,0.00713745,99311.0,99309.0,0.20139152]
[1763080731229,0.00513745,99311.0,99309.0,0.20139152]
[1763080731432,0.00013745,99311.0,99309.0,0.20139152]
[1763080731634,0.00713745,99311.0,99309.0,0.20138975]
[1763080731919,0.00713745,99311.0,99310.0,0.00232266]
[1763080732355,0.00713745,99311.0,99310.0,0.03036266]
[1763080732774,0.00513745,99311.0,99310.0,0.03036266]
[1763080733176,0.00213745,99311.0,99310.0,0.03036266]
[1763080733326,0.00013745,99311.0,99310.0,0.0737814]
[1763080733536,0.00013745,99311.0,99310.0,0.4167814]
[1763080733745,0.00213745,99311.0,99310.0,0.3887414]
[1763080734163,0.00013745,99311.0,99310.0,0.3887414]
[1763080734356,0.00513745,99311.0,99310.0,0.3887414]
[1763080734557,0.01013745,99311.0,99310.0,0.3887414]
[1763080735170,0.01013745,99311.0,99310.0,0.3687414]
[1763080735581,0.01013745,99311.0,99310.0,0.3887414]
[1763080736002,0.00513745,99311.0,99310.0,0.3687414]
[1763080736212,0.00013745,99311.0,99310.0,0.3687414]
[1763080736415,0.01013745,99311.0,99310.0,0.3687414]
[1763080736837,0.01013745,99311.0,99310.0,0.00232266]
[1763080737050,0.00513745,99311.0,99310.0,0.00232266]
[1763080737248,0.01013745,99311.0,99310.0,0.00232266]
[1763080739155,0.00013745,99311.0,99310.0,0.00232266]
[1763080739354,0.00613745,99311.0,99310.0,0.00232266]
[1763080739682,0.00513745,99311.0,99310.0,0.00232266]
[1763080740032,0.86314153,99350.0,99319.0,0.0283]
[1763080740033,0.30198712,99342.0,99319.0,0.0283]
[1763080740255,0.20136884,99321.0,99319.0,0.00045956]
[1763080740455,0.05314,99339.0,99319.0,0.00045956]
[1763080740644,0.21991483,99338.0,99324.0,0.20135924]
[1763080740840,0.0262,99347.0,99319.0,0.02875956]
[1763080740841,0.2013595,99325.0,99319.0,0.00045956]
[1763080741043,0.05314,99339.0,99319.0,0.00045956]
[1763080741044,0.20136416,99323.0,99319.0,0.00045956]
[1763080741245,0.05314,99339.0,99325.0,0.20135882]
[1763080741246,0.20133485,99337.0,99325.0,0.20135882]
[1763080741451,0.20134425,99333.0,99328.0,0.20135273]
[1763080741646,0.01860644,99332.0,99319.0,0.00145956]
[1763080741847,0.0262,99347.0,99331.0,0.01448]
[1763080742048,0.2013389,99335.0,99331.0,0.01448]
[1763080742296,0.01006542,99350.0,99331.0,0.01448]
[1763080742297,0.01860766,99334.0,99333.0,0.20134135]
[1763080742473,0.0262,99360.0,99346.0,0.0283]
[1763080742760,0.0262,99360.0,99332.0,0.0283]
[1763080742761,0.20131958,99345.0,99332.0,0.0283]
[1763080742970,0.01861781,99344.0,99331.0,0.01448]
[1763080743150,0.01861781,99343.0,99342.0,0.20132366]
[1763080745529,0.01861781,99343.0,99342.0,0.20232366]
[1763080745935,0.01861781,99343.0,99342.0,0.002]
[1763080745936,0.08490781,99343.0,99342.0,0.002]
[1763080746146,0.01861781,99343.0,99342.0,0.002]
[1763080746506,0.01861781,99343.0,99342.0,0.20332471]
[1763080746701,0.01861781,99343.0,99342.0,0.002]
[1763080746702,0.2199405,99343.0,99342.0,0.002]
[1763080746915,0.2199405,99343.0,99342.0,0.001]
[1763080747226,0.01861781,99343.0,99342.0,0.002]
[1763080748014,0.14415543,99343.0,99342.0,0.002]
[1763080748222,0.24232458,99343.0,99342.0,0.002]
[1763080748432,0.2731428,99343.0,99342.0,0.001]
[1763080748641,0.2731428,99343.0,99300.0,0.01007049]
[1763080748642,0.20136931,99320.0,99280.0,0.01047252]
[1763080748864,0.33422227,99320.0,99290.0,0.0100715]
[1763080749090,0.33422227,99320.0,99291.0,0.20142794]
[1763080749288,0.33422227,99320.0,99286.0,0.20143729]
[1763080749491,0.33422227,99320.0,99286.0,0.20143808]
[1763080749743,0.65722227,99320.0,99319.0,1e-08]
[1763080749947,2.65722227,99320.0,99319.0,1e-08]
[1763080750336,2.65722227,99320.0,99319.0,0.00100001]
[1763080750509,2.65722227,99320.0,99319.0,0.00300001]
[1763080750712,2.65722227,99320.0,99319.0,1e-08]
[1763080751497,0.66389719,99320.0,99319.0,1e-08]
[1763080751729,0.66389719,99320.0,99292.0,0.20142482]
[1763080751730,0.20141205,99299.0,99292.0,0.20142482]
[1763080751929,0.01861781,99298.0,99295.0,0.20141984]
[1763080752138,0.01861781,99297.0,99288.0,0.20143305]
[1763080752342,0.20142112,99295.0,99280.0,0.04022252]
[1763080752539,0.01861781,99294.0,99291.0,0.20142703]
[1763080752740,0.01861781,99293.0,99292.0,0.20142427]
[1763080753038,0.00048945,99292.0,99287.0,0.20143517]
[1763080753244,0.01861781,99291.0,99280.0,0.0004]
[1763080753443,0.20144725,99282.0,99280.0,0.0014]
[1763080754034,0.20144725,99282.0,99280.0,0.00091055]
[1763080754249,0.03502,99281.0,99280.0,0.00091055]
[1763080754450,0.09895515,99281.0,99280.0,0.00091055]
[1763080754650,0.20147682,99267.0,99250.0,0.01007556]
[1763080754857,0.20147682,99267.0,99258.0,0.323]
[1763080755088,0.20147682,99267.0,99253.0,0.323]
[1763080755301,0.20147682,99267.0,99250.0,0.01007556]
[1763080755302,0.20147682,99267.0,99256.0,0.323]
[1763080755502,0.02826,99268.0,99256.0,0.323]
[1763080755798,0.02872069,99268.0,99259.0,0.20149167]
[1763080755973,0.00046069,99268.0,99256.0,0.323]
[1763080756185,0.20193641,99268.0,99266.0,0.00109]
[1763080756376,0.00046069,99268.0,99266.0,0.00109]
[1763080756581,0.00046069,99268.0,99266.0,0.20156779]
[1763080756780,0.00046069,99268.0,99266.0,0.00109]
[1763080756995,0.00046069,99268.0,99266.0,0.00209]
[1763080756996,0.03502,99267.0,99266.0,0.00209]
[1763080757140,0.28033851,99267.0,99266.0,0.00209]
[1763080757344,0.23649682,99267.0,99266.0,0.00209]
[1763080757553,0.00046069,99268.0,99266.0,0.00554972]
[1763080757749,0.03502,99267.0,99266.0,0.00209]
[1763080757982,0.03502,99267.0,99266.0,0.00109]
[1763080758186,0.20193606,99268.0,99266.0,9e-05]
[1763080758390,0.12376742,99267.0,99266.0,0.00109]
[1763080758830,0.44676742,99267.0,99266.0,0.00109]
[1763080759204,0.44676742,99267.0,99266.0,9e-05]
[1763080759620,0.06328,99267.0,99266.0,9e-05]
[1763080759827,0.00046069,99268.0,99267.0,0.20147682]
[1763080760870,0.00046069,99268.0,99267.0,0.24489556]
[1763080761084,0.00046069,99268.0,99267.0,0.56789556]
[1763080761289,1e-08,99268.0,99267.0,0.59784556]
[1763080761646,1e-08,99268.0,99267.0,0.56889556]
[1763080761847,1e-08,99268.0,99267.0,0.20147682]
[1763080762280,0.00600001,99268.0,99267.0,0.20147682]
[1763080762453,0.01200001,99268.0,99267.0,0.20247682]
[1763080762661,0.01200001,99268.0,99267.0,0.001]
[1763080762863,0.2074748,99268.0,99267.0,0.00343387]
[1763080763196,0.2014748,99268.0,99267.0,0.00543387]
[1763080763400,1e-08,99268.0,99267.0,0.00543387]
[1763080763810,0.01854008,99268.0,99267.0,0.00543387]
[1763080764274,1e-08,99268.0,99267.0,0.20691069]
[1763080764467,1e-08,99268.0,99267.0,0.00643387]
[1763080764468,0.01853375,99268.0,99267.0,0.00643387]
[1763080764685,1e-08,99268.0,99267.0,0.00343387]
[1763080764895,1e-08,99268.0,99267.0,0.00643387]
[1763080765287,0.0201472,99268.0,99267.0,0.00543387]
[1763080765495,0.0201472,99268.0,99267.0,0.00443387]
[1763080765496,1e-08,99268.0,99267.0,0.00443387]
[1763080765668,1e-08,99268.0,99267.0,0.00543387]
[1763080765993,1e-08,99268.0,99267.0,0.00443387]
[1763080766148,0.05354446,99268.0,99267.0,0.00443387]
[1763080766374,0.14231213,99268.0,99267.0,0.00443387]
[1763080766557,0.14231213,99268.0,99267.0,0.00543387]
[1763080767169,0.14231213,99268.0,99267.0,0.00443387]
[1763080767574,0.14231213,99268.0,99267.0,0.00543387]
[1763080767770,0.20147682,99267.0,99266.0,9e-05]
[1763080767972,0.67566721,99267.0,99266.0,9e-05]
[1763080768191,0.71908595,99267.0,99266.0,9e-05]
[1763080768546,0.43917039,99267.0,99266.0,9e-05]
[1763080768746,0.67666721,99267.0,99266.0,9e-05]
[1763080769161,0.67566721,99267.0,99266.0,9e-05]
[1763080769579,0.67666721,99267.0,99266.0,9e-05]
[1763080770579,0.23949682,99267.0,99266.0,9e-05]
[1763080770760,0.25598848,99267.0,99266.0,9e-05]
[1763080771173,0.25598976,99267.0,99266.0,9e-05]
[1763080771331,0.23649682,99267.0,99266.0,9e-05]
[1763080771566,0.20147682,99267.0,99266.0,9e-05]
[1763080771719,0.20247682,99267.0,99266.0,9e-05]
[1763080772127,0.001,99267.0,99266.0,9e-05]
[1763080773570,0.0413931,99267.0,99266.0,9e-05]
[1763080773777,0.001,99267.0,99266.0,9e-05]
[1763080774002,1e-08,99268.0,99266.0,9e-05]
[1763080774468,1e-08,99268.0,99266.0,0.00109]
[1763080775088,1e-08,99268.0,99266.0,0.20156798]
[1763080775327,1e-08,99268.0,99266.0,0.22961798]
[1763080775885,1e-08,99268.0,99266.0,0.00109]
[1763080775886,0.20147549,99268.0,99266.0,0.00109]
[1763080776101,0.02677,99267.0,99266.0,9e-05]
[1763080777047,0.06335,99267.0,99266.0,9e-05]
[1763080777253,0.08188842,99267.0,99266.0,9e-05]
[1763080777793,0.08188842,99267.0,99266.0,0.00109]
[1763080778408,0.08188842,99267.0,99266.0,9e-05]
[1763080778609,0.17066571,99267.0,99266.0,0.00109]
[1763080779238,0.19206103,99267.0,99266.0,0.00109]
[1763080779798,0.52449306,99259.0,99258.0,0.00023254]
[1763080780003,0.57961148,99259.0,99258.0,0.00023254]
[1763080780375,0.67809484,99259.0,99258.0,0.00023254]
[1763080780988,0.67909484,99259.0,99258.0,0.00023254]
[1763080781328,0.67809484,99259.0,99258.0,0.00023254]
[1763080781745,0.67909484,99259.0,99258.0,0.00023254]
[1763080782157,0.7004865,99259.0,99258.0,0.00023254]
[1763080783290,0.6994865,99259.0,99258.0,0.00023254]
[1763080783739,0.7004865,99259.0,99258.0,0.00023254]
[1763080783912,0.60200314,99259.0,99258.0,0.00023254]
[1763080784526,0.60300314,99259.0,99258.0,0.00023254]
[1763080784725,0.60300314,99259.0,99220.0,0.86354766]
[1763080784726,0.01007658,99240.0,99206.0,0.01212]
[1763080785058,0.02677,99233.0,99208.0,0.20159563]
[1763080785235,0.01856709,99232.0,99200.0,0.20201125]
[1763080785375,0.20160179,99206.0,99200.0,0.0004]
[1763080785581,0.20157914,99217.0,99200.0,0.01252]
[1763080785801,0.02677,99233.0,99209.0,0.01212]
[1763080786010,0.20157737,99218.0,99216.0,0.01212]
[1763080786207,0.20157737,99218.0,99216.0,0.01258068]
[1763080786613,0.20157737,99218.0,99216.0,0.00046068]
[1763080788058,0.20157621,99219.0,99216.0,0.00046068]
[1763080788327,0.20156918,99222.0,99216.0,0.00046068]
[1763080788497,0.01007759,99230.0,99216.0,0.00246068]
[1763080788698,0.01856208,99229.0,99216.0,0.00246068]
[1763080788913,0.20156648,99223.0,99217.0,0.20157762]
[1763080789107,0.30225303,99255.0,99217.0,0.01212]
[1763080789307,0.20155601,99228.0,99227.0,0.01212]
[1763080789533,0.20155527,99229.0,99227.0,0.01212]
[1763080789894,0.20155397,99230.0,99227.0,0.01212]
[1763080790512,0.20154912,99232.0,99227.0,0.01212]
[1763080790931,0.20154912,99232.0,99231.0,0.00069785]
[1763080791095,0.22011581,99232.0,99231.0,0.00069785]
[1763080791576,0.01856669,99232.0,99231.0,0.00069785]
[1763080792375,0.01007556,99250.0,99231.0,0.00069785]
[1763080792376,0.20153058,99241.0,99240.0,0.01212]
[1763080792597,0.22012133,99241.0,99240.0,0.01212]
[1763080792864,0.01859075,99241.0,99240.0,0.01258519]
[1763080793069,0.01859075,99241.0,99180.0,0.8721532]
[1763080793070,0.01859075,99241.0,99200.0,0.0004]
[1763080793071,0.20157835,99217.0,99200.0,0.0004]
[1763080793223,0.22017505,99217.0,99200.0,0.0004]
[1763080794661,0.25675505,99217.0,99200.0,0.0004]
[1763080795307,0.22017505,99217.0,99216.0,0.00146068]
[1763080795517,0.22117505,99217.0,99216.0,0.00146068]
[1763080795727,0.22017505,99217.0,99216.0,0.00046068]
[1763080796186,0.22117505,99217.0,99216.0,0.00046068]
[1763080796390,0.20157283,99220.0,99216.0,0.00046068]
[1763080796633,0.20157537,99219.0,99216.0,0.00046068]
[1763080796828,0.02677,99237.0,99216.0,0.00046068]
[1763080797045,0.20157083,99221.0,99216.0,0.20204024]
[1763080797229,0.01860135,99220.0,99218.0,0.20157576]
[1763080797436,0.20157484,99219.0,99216.0,0.00046068]
[1763080797636,0.20154991,99231.0,99216.0,0.00046068]
[1763080797835,0.20157835,99217.0,99216.0,0.00146068]
[1763080798037,0.20157835,99217.0,99200.0,0.0004]
[1763080798038,0.20161087,99201.0,99200.0,0.0004]
[1763080798248,0.28401403,99201.0,99200.0,0.0004]
[1763080798466,0.26542127,99201.0,99200.0,0.0004]
[1763080798661,0.28401563,99201.0,99200.0,0.0004]
[1763080798859,0.37289872,99201.0,99200.0,0.0004]
[1763080799060,0.69589872,99201.0,99200.0,0.00143428]
[1763080799463,0.69689872,99201.0,99200.0,0.00143428]
[1763080800522,0.22166563,99201.0,99200.0,0.00143428]
[1763080800744,0.20307127,99201.0,99200.0,0.00143428]
[1763080801642,0.20207127,99201.0,99200.0,0.00143428]
[1763080802069,0.0004604,99201.0,99200.0,0.00143428]
[1763080804022,0.0004604,99201.0,99200.0,0.04485302]
[1763080804159,0.0004604,99201.0,99200.0,0.04685302]
[1763080804364,0.0004604,99201.0,99200.0,0.38985302]
[1763080804566,0.0004604,99201.0,99200.0,0.38785302]
[1763080804789,0.0004604,99201.0,99200.0,0.32443428]
[1763080804996,0.0004604,99201.0,99200.0,0.36985302]
[1763080805794,0.0064604,99201.0,99200.0,0.36985302]
[1763080805983,0.0064604,99201.0,99200.0,0.36785302]
[1763080806184,0.0064604,99201.0,99200.0,0.04485302]
[1763080806442,0.0124604,99201.0,99200.0,0.04585302]
[1763080806804,0.0124604,99201.0,99200.0,0.06594873]
[1763080807231,0.0064604,99201.0,99200.0,0.06494873]
[1763080807409,0.0064604,99201.0,99200.0,0.40994873]
[1763080807768,0.0064604,99201.0,99200.0,0.38994873]
[1763080808054,0.0004604,99201.0,99200.0,0.38994873]
[1763080808513,0.20152389,99244.0,99221.0,0.04341874]
[1763080808720,0.20152479,99244.0,99237.0,0.20153637]
[1763080808931,0.20153654,99238.0,99228.0,0.20155412]
[1763080809151,0.20153879,99237.0,99230.0,0.20155067]
[1763080809340,0.323,99259.0,99237.0,0.21225667]
[1763080809568,0.20149826,99257.0,99239.0,0.01072]
[1763080809743,0.01863105,99256.0,99239.0,0.01072]
[1763080809977,0.20152782,99242.0,99239.0,0.01072]
[1763080810183,0.20151816,99247.0,99239.0,0.01072]
[1763080810422,0.20150321,99254.0,99242.0,0.20152632]
[1763080810636,0.01007455,99260.0,99242.0,0.20152621]
[1763080810843,0.20151097,99251.0,99245.0,0.2015196]
[1763080811061,0.01007455,99260.0,99239.0,0.01072]
[1763080811062,0.20150388,99254.0,99248.0,0.20151424]
[1763080811277,0.20149555,99258.0,99247.0,0.20151604]
[1763080811497,0.04254789,99257.0,99247.0,0.20151604]
[1763080811686,0.20150222,99255.0,99249.0,0.20151247]
[1763080811961,0.20150222,99255.0,99246.0,0.20151918]
[1763080811962,0.20149712,99257.0,99251.0,0.20150824]
[1763080812204,0.01007353,99270.0,99256.0,0.01072]
[1763080812425,0.20148867,99262.0,99257.0,0.20149608]
[1763080812636,0.20148101,99265.0,99257.0,0.20149608]
[1763080812853,0.01862443,99264.0,99247.0,0.21223539]
[1763080813065,0.323,99268.0,99256.0,0.20149816]
[1763080813277,0.20148775,99262.0,99257.0,0.20149616]
[1763080813482,0.20147682,99267.0,99258.0,0.20149434]
[1763080813696,0.20151004,99251.0,99247.0,0.00013745]
[1763080813903,0.20151539,99248.0,99247.0,0.00013745]
[1763080814336,0.20150608,99253.0,99247.0,0.00013745]
[1763080814561,0.20150608,99253.0,99248.0,0.2015144]
[1763080815035,0.20150958,99251.0,99247.0,0.00013745]
[1763080815187,0.20150958,99251.0,99248.0,0.20151539]
[1763080815392,0.20150118,99255.0,99247.0,0.00013745]
[1763080815559,0.2741849,99262.0,99247.0,0.00013745]
[1763080815762,0.0251,99248.0,99247.0,0.00013745]
[1763080815962,0.2015142,99249.0,99247.0,0.00013745]
[1763080817433,0.20149712,99257.0,99256.0,0.01072]
[1763080817570,0.001,99255.0,99247.0,0.00013745]
[1763080817773,0.20151539,99248.0,99247.0,0.00013745]
[1763080818442,0.19651539,99248.0,99247.0,0.00013745]
[1763080818678,0.001,99255.0,99248.0,0.01072]
[1763080819089,0.20148013,99266.0,99257.0,0.01072]
[1763080819285,0.2014861,99263.0,99257.0,0.01072]
[1763080819496,0.01007353,99270.0,99257.0,0.01072]
[1763080819693,0.22290482,99279.0,99257.0,0.01072]
[1763080819929,0.44946285,99290.0,99275.0,0.20145922]
[1763080819930,0.52443371,99289.0,99275.0,0.20145922]
[1763080820132,0.44946285,99290.0,99260.0,0.01007455]
[1763080820133,0.323,99281.0,99260.0,0.01007455]
[1763080820333,0.02681185,99296.0,99261.0,0.01072]
[1763080820574,0.20142612,99292.0,99261.0,0.21220697]
[1763080820921,0.01007252,99280.0,99251.0,0.01072]
[1763080821145,0.01007252,99280.0,99247.0,0.02023316]
[1763080821146,0.43939135,99271.0,99247.0,0.00013745]
[1763080821318,0.47456488,99270.0,99247.0,0.00013745]
[1763080821459,0.20150929,99252.0,99247.0,0.00013745]
[1763080821662,0.20150404,99254.0,99250.0,0.20150953]
[1763080821856,0.20150026,99256.0,99247.0,0.00013745]
[1763080822141,0.0572734,99269.0,99252.0,0.20150685]
[1763080822346,0.20150752,99252.0,99248.0,0.20151539]
[1763080822660,0.20150161,99255.0,99251.0,0.20150836]
[1763080822850,0.20150775,99252.0,99247.0,0.20165446]
[1763080823037,0.20150775,99252.0,99247.0,0.20165445]
[1763080823198,0.03517353,99270.0,99247.0,0.00013745]
[1763080823199,0.20150174,99255.0,99247.0,0.00013745]
[1763080823383,0.20150174,99255.0,99250.0,0.20151016]
[1763080823588,0.20150688,99253.0,99249.0,0.20151291]
[1763080823788,0.20149897,99257.0,99252.0,0.20150536]
[1763080824062,0.20149537,99258.0,99254.0,0.20150225]
[1763080824221,0.01007252,99280.0,99257.0,0.01072]
[1763080824425,0.01007252,99280.0,99265.0,0.2014803]
[1763080824630,0.01636177,99280.0,99260.0,0.01072]
[1763080824886,0.323,99281.0,99275.0,0.20145911]
[1763080825058,0.323,99281.0,99261.0,0.01072]
[1763080825258,0.201476,99268.0,99261.0,0.01072]
[1763080825467,0.201476,99268.0,99265.0,0.20148056]
[1763080825668,0.001,99280.0,99270.0,0.01072]
[1763080825868,0.20146674,99272.0,99270.0,0.01072]
[1763080826074,0.001,99280.0,99279.0,0.01072]
[1763080826837,0.20144178,99285.0,99280.0,0.20145026]
[1763080827048,0.20143537,99288.0,99281.0,0.20144793]
[1763080827249,0.20143537,99288.0,99282.0,0.2014462]
[1763080827474,0.0100715,99290.0,99283.0,0.20144435]
[1763080827675,0.20144545,99283.0,99281.0,0.00013745]
[1763080827854,0.20144545,99283.0,99282.0,0.00803]
[1763080828281,0.20143783,99287.0,99282.0,0.00803]
[1763080828511,0.20143892,99286.0,99282.0,0.20947623]
[1763080828745,0.0100715,99290.0,99283.0,0.20144403]
[1763080828895,0.20143916,99286.0,99283.0,0.20144403]
[1763080829096,0.0100715,99290.0,99285.0,0.20144017]
[1763080829449,0.2115024,99290.0,99283.0,0.20144403]
[1763080829685,0.01007049,99300.0,99290.0,0.2014299]
[1763080829910,0.01007049,99300.0,99282.0,0.00803]
[1763080829911,0.20142009,99295.0,99293.0,0.00803]
[1763080830114,0.20141406,99298.0,99293.0,0.00803]
[1763080830338,0.2014165,99297.0,99293.0,0.20945384]
[1763080830490,0.20140974,99301.0,99296.0,0.20141741]
[1763080830671,0.20140178,99304.0,99290.0,0.00803]
[1763080830897,0.2014051,99303.0,99300.0,0.00803]
[1763080831254,0.2014065,99302.0,99282.0,0.00803]
[1763080831467,0.2014336,99289.0,99282.0,0.00803]
[1763080831664,0.2014336,99289.0,99283.0,0.20144418]
[1763080831806,0.2014336,99289.0,99282.0,0.01606]
[1763080832023,0.20144297,99284.0,99282.0,0.01606]
[1763080832221,0.20144297,99284.0,99282.0,0.00803]
[1763080833066,0.19735001,99285.0,99282.0,0.00903]
[1763080833301,0.20144297,99284.0,99282.0,0.00903]
[1763080833471,0.20144297,99284.0,99282.0,0.00803]
[1763080833991,0.20144297,99284.0,99282.0,0.00903]
[1763080834192,0.20144297,99284.0,99282.0,0.01003]
[1763080834393,0.02594,99309.0,99291.0,0.20945783]
[1763080834557,0.20140665,99302.0,99295.0,0.2094492]
[1763080834744,0.20141703,99297.0,99295.0,0.00803]
[1763080834999,0.02594,99309.0,99283.0,0.00803]
[1763080835000,0.20142438,99293.0,99283.0,0.00803]
[1763080835194,0.20144435,99283.0,99282.0,0.00803]
[1763080835400,0.20144256,99284.0,99282.0,0.00803]
[1763080835599,0.20142533,99293.0,99282.0,0.00803]
[1763080835945,0.20142619,99292.0,99287.0,0.20143463]
[1763080836161,0.20143065,99290.0,99284.0,0.20144187]
[1763080836360,0.20142408,99293.0,99285.0,0.20144029]
[1763080836515,0.09816915,99304.0,99282.0,0.00803]
[1763080836516,0.2014149,99298.0,99293.0,0.20142243]
[1763080836720,0.2014149,99298.0,99273.0,0.30219479]
[1763080836721,0.05975,99294.0,99272.0,0.00803]
[1763080836919,0.20144638,99282.0,99272.0,0.00803]
[1763080837333,0.23525638,99282.0,99272.0,0.00803]
[1763080839822,0.20144638,99282.0,99272.0,0.00803]
[1763080841616,0.23525638,99282.0,99272.0,0.00803]
[1763080841810,0.20144638,99282.0,99272.0,0.00803]
[1763080842189,0.23525638,99282.0,99272.0,0.00803]
[1763080842642,0.26920747,99282.0,99272.0,0.00803]
[1763080843379,0.23525638,99282.0,99272.0,0.00803]
[1763080843575,0.20144638,99282.0,99272.0,0.00803]
[1763080844036,0.23525638,99282.0,99266.0,0.00803]
[1763080844601,0.23525638,99282.0,99267.0,0.20147602]
[1763080844796,0.23525638,99282.0,99267.0,0.20147635]
[1763080844987,0.20144638,99282.0,99266.0,0.00803]
[1763080845201,0.20144638,99282.0,99266.0,0.209508]
[1763080845406,0.20144638,99282.0,99266.0,0.00803]
[1763080845619,0.20144638,99282.0,99266.0,0.20950687]
[1763080845820,0.20144638,99282.0,99267.0,0.20147681]
[1763080846026,0.20143228,99289.0,99268.0,0.20147451]
[1763080846227,0.20144638,99282.0,99275.0,0.20146035]
[1763080846829,0.20144638,99282.0,99274.0,0.2014625]
[1763080847003,0.20144638,99282.0,99275.0,0.20145658]
[1763080847419,0.23525638,99282.0,99266.0,0.00803]
[1763080847615,0.20144638,99282.0,99266.0,0.00803]
[1763080849524,0.20144638,99282.0,99269.0,0.20147088]
[1763080849729,0.20144638,99282.0,99267.0,0.20147593]
[1763080849928,0.20144638,99282.0,99266.0,0.00803]
[1763080850139,0.20144638,99282.0,99268.0,0.20147283]
[1763080850598,0.20144638,99282.0,99270.0,0.20147058]
[1763080851009,0.20144638,99282.0,99271.0,0.20146851]
[1763080851213,0.20144638,99282.0,99266.0,0.20950854]
[1763080851629,0.20144638,99282.0,99266.0,0.00803]
[1763080851840,0.20144638,99282.0,99266.0,0.20950483]
[1763080852038,0.20144638,99282.0,99266.0,0.00803]
[1763080853031,0.23525638,99282.0,99255.0,0.00803]
[1763080853398,0.20144435,99283.0,99272.0,0.20146564]
[1763080853616,0.20144435,99283.0,99261.0,0.00803]
[1763080853835,0.03381,99282.0,99261.0,0.00803]
[1763080854054,0.20144435,99283.0,99273.0,0.20146406]
[1763080854255,0.20144435,99283.0,99269.0,0.20147174]
[1763080854607,0.20144435,99283.0,99270.0,0.20147043]
[1763080854808,0.20144435,99283.0,99268.0,0.20147441]
[1763080855053,0.20144435,99283.0,99269.0,0.20147189]
[1763080855215,0.20244435,99283.0,99268.0,0.20147441]
[1763080855390,0.20244435,99283.0,99270.0,0.20147045]
[1763080855801,0.20244435,99283.0,99270.0,0.20147041]
[1763080856009,0.20244435,99283.0,99268.0,0.20147375]
[1763080856210,0.20244435,99283.0,99267.0,0.20147583]
[1763080856431,0.20244435,99283.0,99269.0,0.20147229]
[1763080857046,0.20244435,99283.0,99270.0,0.20147016]
[1763080857677,0.14588057,99282.0,99250.0,0.01007556]
[1763080857886,0.08785345,99282.0,99251.0,0.20150824]
[1763080858245,0.07395203,99282.0,99264.0,0.20148241]
[1763080858395,0.05529855,99282.0,99264.0,0.20148241]
[1763080858604,0.05529855,99282.0,99264.0,0.20148155]
[1763080858769,0.05529855,99282.0,99254.0,0.00605]
[1763080859005,0.05529855,99282.0,99250.0,0.56189136]
[1763080859203,0.05529855,99282.0,99234.0,0.3324555]
[1763080859204,0.20149915,99256.0,99238.0,0.00605]
[1763080859427,0.20151742,99247.0,99246.0,0.00605]
[1763080860264,0.20151336,99249.0,99246.0,0.00605]
[1763080860453,0.20151636,99248.0,99246.0,0.00605]
[1763080861156,0.20151567,99248.0,99246.0,0.00605]
[1763080861378,0.20151568,99248.0,99246.0,0.00605]
[1763080861530,0.05263,99255.0,99233.0,0.00605]
[1763080861735,0.20153395,99239.0,99235.0,0.2015415]
[1763080861934,0.20153395,99239.0,99236.0,0.20153939]
[1763080862165,0.20153395,99239.0,99234.0,0.20154276]
[1763080862370,0.2015421,99235.0,99233.0,0.00605]
[1763080862709,0.20154301,99235.0,99233.0,0.00605]
[1763080863919,0.20154196,99237.0,99231.0,0.00023264]
[1763080863920,0.20154788,99232.0,99231.0,0.00023264]
[1763080864134,0.55791788,99232.0,99231.0,0.00023264]
[1763080864347,0.55791788,99232.0,99194.0,0.00628]
[1763080864348,0.20160883,99202.0,99194.0,0.00628]
[1763080864557,0.20160883,99202.0,99180.0,0.01048267]
[1763080864558,0.25958087,99201.0,99188.0,0.00628]
[1763080864776,0.0246,99201.0,99188.0,0.00628]
[1763080864967,0.0246,99201.0,99193.0,0.20162638]
[1763080865172,0.20160289,99205.0,99199.0,0.2016137]
[1763080865389,0.20160544,99204.0,99192.0,0.20162758]
[1763080865603,0.00013801,99205.0,99189.0,0.20163502]
[1763080865722,0.20160983,99202.0,99200.0,0.0014]
[1763080866973,0.20160983,99202.0,99200.0,0.0004]
[1763080867183,0.20160983,99202.0,99200.0,0.0014]
[1763080867403,0.21158659,99201.0,99200.0,0.0014]
[1763080867574,0.23714659,99201.0,99200.0,0.0014]
[1763080867781,0.23714659,99201.0,99200.0,0.0004]
[1763080867981,0.23714659,99201.0,99200.0,0.0014]